fUST/lending_fUST_20250708
["ID","MTS","AMOUNT","RATE_DAILY","PERIOD"]
[370363053,1751981439106,-460.0,0.00019178,2]
[370363054,1751981439116,-1821.56,0.00019178,2]
[370363055,1751981439125,-13455.79,0.00019178,2]
[370363056,1751981439135,-461.866477,0.00019178,2]
[370363057,1751981439144,-434.19659727,0.00019178,2]
[370363058,1751981439154,-460.0,0.00019178,2]
[370363059,1751981439163,-460.0,0.00019178,2]
[370363060,1751981439173,-5439.09,0.00019178,2]
[370363061,1751981439182,-1036.04,0.00019178,2]
[370363062,1751981439192,-765.94,0.00019178,2]
[370363063,1751981439201,-1757.46,0.00019178,2]
[370363064,1751981439211,-460.0,0.00019178,2]
[370363065,1751981439220,-460.0,0.00019178,2]
[370363066,1751981439230,-460.0,0.00019178,2]
[370363067,1751981439239,-1867.66,0.00019178,2]
[370363068,1751981439249,-460.0,0.00019178,2]
[370363069,1751981439259,-460.0,0.00019178,2]
[370363070,1751981439269,-3385.63,0.00019178,2]
[370363071,1751981439279,-460.0,0.00019178,2]
[370363072,1751981439288,-460.0,0.00019178,2]
[370363073,1751981439302,-460.0,0.00019178,2]
[370363074,1751981439311,-460.0,0.00019178,2]
[370363075,1751981439321,-991.97,0.00019178,2]
[370363076,1751981439331,-460.0,0.00019178,2]
[370363077,1751981439340,-460.0,0.00019178,2]
[370363078,1751981439350,-560.13,0.00019178,2]
[370363079,1751981439359,-898.5,0.00019178,2]
[370363080,1751981439369,-460.0,0.00019178,2]
[370363081,1751981439379,-460.0,0.00019178,2]
[370363082,1751981439389,-460.0,0.00019178,2]
[370363083,1751981439399,-4924.84,0.00019178,2]
[370363084,1751981439408,-460.0,0.00019178,2]
[370363085,1751981439417,-4461.65,0.00019178,2]
[370363086,1751981439427,-151.0,0.00019178,2]
[370363087,1751981439436,-151.0,0.00019178,2]
[370363088,1751981439446,-151.0,0.00019178,2]
[370363089,1751981439455,-559.75,0.00019178,2]
[370363090,1751981439465,-151.0,0.00019178,2]
[370363091,1751981439474,-3873.62,0.00019178,2]
[370363092,1751981439484,-460.0,0.00019178,2]
[370363093,1751981439493,-460.0,0.00019178,2]
[370363094,1751981439502,-151.0,0.00019178,2]
[370363095,1751981439512,-151.0,0.00019178,2]
[370363096,1751981439522,-151.0,0.00019178,2]
[370363097,1751981439531,-151.0,0.00019178,2]
[370363098,1751981439540,-151.0,0.00019178,2]
[370363099,1751981439549,-151.0,0.00019178,2]
[370363100,1751981439559,-151.0,0.00019178,2]
[370363101,1751981439568,-460.0,0.00019178,2]
[370363102,1751981439577,-602.16,0.00019178,2]
[370363103,1751981439586,-460.0,0.00019178,2]
[370363104,1751981439595,-151.0,0.00019178,2]
[370363105,1751981439605,-151.0,0.00019178,2]
[370363106,1751981439614,-151.0,0.00019178,2]
[370363107,1751981439623,-460.0,0.00019178,2]
[370363108,1751981439633,-2351.87,0.00019178,2]
[370363109,1751981439643,-900.22,0.00019178,2]
[370363110,1751981439652,-460.0,0.00019178,2]
[370363111,1751981439661,-652.914468,0.00019178,2]
[370363112,1751981439671,-652.914468,0.00019178,2]
[370363113,1751981439680,-652.914468,0.00019178,2]
[370363114,1751981439690,-652.914468,0.00019178,2]
[370363115,1751981439700,-500.0,0.00019178,2]
[370363116,1751981439709,-460.0,0.00019178,2]
[370363117,1751981439719,-460.0,0.00019178,2]
[370363118,1751981439727,-652.914468,0.00019178,2]
[370363119,1751981439737,-652.914468,0.00019178,2]
[370363120,1751981439747,-460.0,0.00019178,2]
[370363121,1751981439756,-652.914468,0.00019178,2]
[370363122,1751981439766,-652.914468,0.00019178,2]
[370363123,1751981439775,-460.0,0.00019178,2]
[370363124,1751981439785,-1341.38,0.00019178,2]
[370363125,1751981439795,-460.0,0.00019178,2]
[370363126,1751981439806,-409.147028,0.00019178,2]
[370363127,1751981439816,-505.9,0.00019178,2]
[370363128,1751981439825,-409.147028,0.00019178,2]
[370363129,1751981439835,-409.147028,0.00019178,2]
[370363130,1751981439845,-409.147028,0.00019178,2]
[370363131,1751981439854,-460.0,0.00019178,2]
[370363132,1751981439864,-460.0,0.00019178,2]
[370363133,1751981439873,-409.147028,0.00019178,2]
[370363134,1751981439883,-514.619335,0.00019178,2]
[370363135,1751981439892,-409.147028,0.00019178,2]
[370363136,1751981439901,-409.147028,0.00019178,2]
[370363137,1751981439911,-514.619335,0.00019178,2]
[370363138,1751981439920,-409.147028,0.00019178,2]
[370363139,1751981439930,-514.619335,0.00019178,2]
[370363140,1751981439939,-514.619335,0.00019178,2]
[370363141,1751981439948,-1267.68,0.00019178,2]
[370363142,1751981439958,-1821.03,0.00019178,2]
[370363143,1751981439968,-514.619335,0.00019178,2]
[370363144,1751981439977,-460.0,0.00019178,2]
[370363145,1751981439987,-514.619335,0.00019178,2]
[370363146,1751981439996,-2845.28,0.00019178,2]
[370363147,1751981440007,-514.619335,0.00019178,2]
[370363148,1751981440016,-514.619335,0.00019178,2]
[370363149,1751981440103,-460.0,0.00019178,2]
[370363150,1751981440113,-2121.78,0.00019178,2]
[370363151,1751981440122,-460.0,0.00019178,2]
[370363152,1751981440132,-460.0,0.00019178,2]
[370363153,1751981440141,-460.0,0.00019178,2]
[370363154,1751981440151,-3011.57,0.00019178,2]
[370363155,1751981440161,-11303.12,0.00019178,2]
[370363156,1751981440170,-151.0,0.00019178,2]
[370363157,1751981440179,-195.91385145,0.00019178,2]
[370363158,1751981440189,-151.0,0.00019178,2]
[370363159,1751981440198,-460.0,0.00019178,2]
[370363161,1751981440207,-460.0,0.00019178,2]
[370363163,1751981440217,-151.0,0.00019178,2]
[370363165,1751981440226,-460.0,0.00019178,2]
[370363167,1751981440236,-460.0,0.00019178,2]
[370363169,1751981440245,-460.0,0.00019178,2]
[370363171,1751981440255,-460.0,0.00019178,2]
[370363173,1751981440266,-888.63,0.00019178,2]
[370363175,1751981440275,-460.0,0.00019178,2]
[370363177,1751981440285,-460.0,0.00019178,2]
[370363179,1751981440298,-460.0,0.00019178,2]
[370363181,1751981440308,-460.0,0.00019178,2]
[370363183,1751981440318,-460.0,0.00019178,2]
[370363185,1751981440327,-463.71195241,0.00019178,2]
[370363187,1751981440337,-460.0,0.00019178,2]
[370363189,1751981440346,-460.0,0.00019178,2]
[370363191,1751981440355,-749.06,0.00019178,2]
[370363193,1751981440365,-460.0,0.00019178,2]
[370363195,1751981440374,-460.0,0.00019178,2]
[370363197,1751981440384,-1278.14,0.00019178,2]
[370363199,1751981440393,-1955.19,0.00019178,2]
[370363201,1751981440403,-519.85292996,0.00019178,2]
[370363203,1751981440412,-526.77,0.00019178,2]
[370363205,1751981440421,-460.0,0.00019178,2]
[370363207,1751981440431,-460.0,0.00019178,2]
[370363209,1751981440440,-6484.75,0.00019178,2]
[370363211,1751981440450,-460.0,0.00019178,2]
[370363213,1751981440459,-500.0,0.00019178,2]
[370363215,1751981440469,-1174.49,0.00019178,2]
[370363217,1751981440478,-519.16,0.00019178,2]
[370363219,1751981440488,-460.0,0.00019178,2]
[370363221,1751981440497,-2194.12,0.00019178,2]
[370363222,1751981440507,-460.0,0.00019178,2]
[370363223,1751981440517,-460.0,0.00019178,2]
[370363224,1751981440527,-531.38,0.00019178,2]
[370363225,1751981440537,-460.0,0.00019178,2]
[370363226,1751981440546,-460.0,0.00019178,2]
[370363227,1751981440556,-6706.7,0.00019178,2]
[370363228,1751981440565,-580.03656657,0.00019178,2]
[370363229,1751981440575,-460.0,0.00019178,2]
[370363230,1751981440585,-460.0,0.00019178,2]
[370363231,1751981440595,-460.0,0.00019178,2]
[370363232,1751981440604,-460.0,0.00019178,2]
[370363233,1751981440624,-460.0,0.00019178,2]
[370363234,1751981440643,-1201.64,0.00019178,2]
[370363235,1751981440662,-1170.12,0.00019178,2]
[370363236,1751981440683,-485.05,0.00019178,2]
[370363237,1751981440702,-460.0,0.00019178,2]
[370363238,1751981440721,-9417.42,0.00019178,2]
[370363239,1751981440735,-3183.99,0.00019178,2]
[370363240,1751981440753,-460.0,0.00019178,2]
[370363241,1751981440777,-460.0,0.00019178,2]
[370363242,1751981440796,-615.44,0.00019178,2]
[370363243,1751981440811,-532.41,0.00019178,2]
[370363244,1751981440828,-1462.65,0.00019178,2]
[370363245,1751981440844,-460.0,0.00019178,2]
[370363246,1751981440862,-285.47012378,0.00019178,2]
[370363247,1751981440877,-1000.0,0.00019178,2]
[370363248,1751981440892,-460.0,0.00019178,2]
[370363249,1751981440907,-460.0,0.00019178,2]
[370363250,1751981440922,-460.0,0.00019178,2]
[370363251,1751981440937,-460.0,0.00019178,2]
[370363252,1751981440952,-1323.76,0.00019178,2]
[370363253,1751981440966,-460.0,0.00019178,2]
[370363254,1751981440981,-704.81,0.00019178,2]
[370363255,1751981440996,-505.03537856,0.00019178,2]
[370363256,1751981441010,-5161.92,0.00019178,2]
[370363257,1751981441027,-460.0,0.00019178,2]
[370363258,1751981441042,-460.0,0.00019178,2]
[370363259,1751981441056,-479.18,0.00019178,2]
[370363260,1751981441072,-460.0,0.00019178,2]
[370363261,1751981441088,-520.04,0.00019178,2]
[370363262,1751981441102,-460.0,0.00019178,2]
[370363263,1751981441117,-460.0,0.00019178,2]
[370363264,1751981441133,-1434.35,0.00019178,2]
[370363265,1751981441148,-460.0,0.00019178,2]
[370363266,1751981441163,-5953.51,0.00019178,2]
[370363267,1751981441178,-460.0,0.00019178,2]
[370363268,1751981441193,-460.0,0.00019178,2]
[370363269,1751981441208,-460.0,0.00019178,2]
[370363270,1751981441223,-841.4,0.00019178,2]
[370363271,1751981441238,-460.0,0.00019178,2]
[370363272,1751981441252,-460.0,0.00019178,2]
[370363273,1751981441267,-151.0,0.00019178,2]
[370363274,1751981441283,-151.0,0.00019178,2]
[370363275,1751981441301,-151.0,0.00019178,2]
[370363276,1751981441316,-151.0,0.00019178,2]
[370363277,1751981441331,-460.0,0.00019178,2]
[370363278,1751981441348,-2917.72,0.00019178,2]
[370363279,1751981441363,-151.0,0.00019178,2]
[370363280,1751981441379,-460.0,0.00019178,2]
[370363281,1751981441394,-2157.33,0.00019178,2]
[370363282,1751981441409,-460.0,0.00019178,2]
[370363283,1751981441425,-3295.55,0.00019178,2]
[370363284,1751981441440,-460.0,0.00019178,2]
[370363285,1751981441455,-460.0,0.00019178,2]
[370363286,1751981441596,-1045.57,0.00019178,2]
[370363287,1751981441608,-460.0,0.00019178,2]
[370363288,1751981441618,-1048.98,0.00019178,2]
[370363289,1751981441627,-730.08,0.00019178,2]
[370363290,1751981441637,-570.7372325,0.00019178,2]
[370363291,1751981441646,-1584.14,0.00019178,2]
[370363292,1751981441655,-5000.0,0.00019178,2]
[370363293,1751981441665,-289.198281,0.00019178,2]
[370363294,1751981441674,-666.0,0.00019178,2]
[370363295,1751981441684,-302.66710251,0.0001919,2]
[370363296,1751981441693,-276.29389,0.00019191,2]
[370363297,1751981441703,-151.0,0.00019191,2]
[370363298,1751981441712,-151.0,0.00019191,2]
[370363299,1751981441722,-190.751162,0.00019191,2]
[370363300,1751981441731,-190.751162,0.00019191,2]
[370363301,1751981441741,-151.0,0.000192,2]
[370363302,1751981441750,-151.0,0.000192,2]
[370363303,1751981441761,-151.0,0.000192,2]
[370363304,1751981441771,-151.0,0.000192,2]
[370363305,1751981441781,-23400.0,0.000192,16]
[370363306,1751981441790,-500.0,0.00019205,2]
[370363307,1751981441801,-151.0,0.00019205,2]
[370363308,1751981441811,-500.0,0.00019205,2]
[370363309,1751981441819,-151.0,0.00019205,2]
[370363310,1751981441829,-151.0,0.00019205,2]
[370363311,1751981441838,-151.0,0.00019205,2]
[370363312,1751981441847,-500.0,0.00019205,2]
[370363313,1751981441856,-500.0,0.00019205,2]
[370363314,1751981441865,-500.0,0.00019205,2]
[370363315,1751981441874,-151.0,0.00019205,2]
[370363316,1751981441884,-151.0,0.00019205,2]
[370363317,1751981441893,-151.0,0.00019205,2]
[370363318,1751981441903,-151.0,0.00019205,2]
[370363319,1751981441912,-151.14172381,0.00019205,2]
[370363320,1751981441921,-500.0,0.00019205,2]
[370363321,1751981441930,-151.0,0.00019205,2]
[370363322,1751981441940,-500.0,0.00019205,2]
[370363323,1751981441950,-151.0,0.00019205,2]
[370363324,1751981441962,-151.0,0.00019205,2]
[370363325,1751981441972,-151.0,0.00019205,2]
[370363326,1751981441983,-500.0,0.00019205,2]
[370363327,1751981441993,-151.0,0.00019205,2]
[370363328,1751981442002,-151.0,0.00019205,2]
[370363329,1751981442013,-194.368588,0.00019205,2]
[370363330,1751981442023,-151.0,0.00019205,2]
[370363331,1751981442033,-151.0,0.00019205,2]
[370363332,1751981442043,-500.0,0.00019205,2]
[370363333,1751981442052,-248.08348497,0.00019205,2]
[370363334,1751981442062,-500.0,0.00019205,2]
[370363335,1751981442072,-151.0,0.00019205,2]
[370363336,1751981442081,-151.0,0.00019205,2]
[370363337,1751981442091,-500.0,0.00019205,2]
[370363338,1751981442100,-500.0,0.00019205,2]
[370363339,1751981442110,-500.0,0.00019205,2]
[370363340,1751981442119,-151.0,0.00019205,2]
[370363341,1751981442128,-500.0,0.00019205,2]
[370363342,1751981442137,-238.81333184,0.00019205,2]
[370363343,1751981442147,-500.0,0.00019205,2]
[370363344,1751981442156,-500.0,0.00019205,2]
[370363345,1751981442166,-314.213546,0.00019208,2]
[370363346,1751981442175,-3159.57533106,0.0001921,2]
[370363347,1751981442185,-770.17471178,0.00019224,2]
[370363348,1751981442194,-169.74390161,0.0001923,2]
[370363349,1751981442204,-151.0,0.00019232,2]
[370363350,1751981442214,-603.22990331,0.00019232,2]
[370363351,1751981442224,-500.0,0.00019232,2]
[370363352,1751981442233,-151.0,0.00019232,2]
[370363353,1751981442243,-151.0,0.00019232,2]
[370363354,1751981442252,-261.51190099,0.00019232,2]
[370363355,1751981442261,-500.0,0.00019232,2]
[370363356,1751981442271,-500.0,0.00019232,2]
[370363357,1751981442280,-500.0,0.00019232,2]
[370363358,1751981442290,-151.0,0.00019232,2]
[370363359,1751981442302,-269.08212181,0.00019232,2]
[370363360,1751981442311,-151.0,0.00019232,2]
[370363361,1751981442321,-151.0,0.00019232,2]
[370363362,1751981442331,-500.0,0.00019232,2]
[370363363,1751981442340,-151.0,0.00019232,2]
[370363364,1751981442350,-500.0,0.00019232,2]
[370363365,1751981442359,-169.89373213,0.00019232,2]
[370363366,1751981442369,-151.0,0.00019232,2]
[370363367,1751981442378,-500.0,0.00019232,2]
[370363368,1751981442388,-151.0,0.00019232,2]
[370363369,1751981442397,-500.0,0.00019232,2]
[370363370,1751981442407,-500.0,0.00019232,2]
[370363371,1751981442417,-151.0,0.00019232,2]
[370363372,1751981442427,-151.0,0.00019232,2]
[370363373,1751981442436,-500.0,0.00019232,2]
[370363374,1751981442445,-500.0,0.00019232,2]
[370363375,1751981442455,-500.0,0.00019232,2]
[370363376,1751981442465,-255.59852124,0.00019232,2]
[370363377,1751981442474,-500.0,0.00019232,2]
[370363378,1751981442484,-500.0,0.00019232,2]
[370363379,1751981442494,-500.0,0.00019232,2]
[370363380,1751981442503,-178.54144095,0.0001924,2]
[370363382,1751981442512,-644.365,0.00019246,2]
[370363383,1751981442522,-500.0,0.0001926,2]
[370363384,1751981442531,-151.0,0.0001926,2]
[370363385,1751981442540,-151.0,0.0001926,2]
[370363386,1751981442550,-500.0,0.0001926,2]
[370363387,1751981442559,-302.50206949,0.0001926,2]
[370363388,1751981442568,-500.0,0.0001926,2]
[370363390,1751981442578,-195.54450603,0.0001926,2]
[370363392,1751981442587,-151.8080082,0.0001926,2]
[370363393,1751981442597,-151.0,0.0001926,2]
[370363395,1751981442607,-500.0,0.0001926,2]
[370363396,1751981442618,-151.0,0.0001926,2]
[370363397,1751981442627,-500.0,0.0001926,2]
[370363398,1751981442636,-154.03906861,0.0001926,2]
[370363399,1751981442646,-500.0,0.0001926,2]
[370363400,1751981442655,-151.0,0.0001926,2]
[370363402,1751981442665,-500.0,0.0001926,2]
[370363403,1751981442674,-500.0,0.0001926,2]
[370363404,1751981442683,-201.61133076,0.0001926,2]
[370363405,1751981442693,-198.0,0.0001926,2]
[370363406,1751981442702,-500.0,0.0001926,2]
[370363407,1751981442711,-500.0,0.0001926,2]
[370363408,1751981442721,-500.0,0.0001926,2]
[370363409,1751981442731,-500.0,0.0001926,2]
[370363410,1751981442741,-500.0,0.0001926,2]
[370363411,1751981442752,-520.65122552,0.0001926,2]
[370363412,1751981442763,-151.0,0.00019277,2]
[370363413,1751981442772,-151.0,0.00019277,2]
[370363414,1751981442782,-324.718956,0.00019277,2]
[370363415,1751981442792,-197.62515,0.00019277,2]
[370363416,1751981442802,-324.718956,0.00019277,2]
[370363417,1751981442811,-868.633632,0.00019278,2]
[370363418,1751981442820,-868.633632,0.00019278,2]
[370363419,1751981442830,-151.0,0.00019278,2]
[370363420,1751981442842,-151.0,0.00019278,2]
[370363421,1751981442852,-1899.487171,0.00019278,2]
[370363422,1751981442863,-1899.487171,0.00019278,2]
[370363423,1751981442873,-151.0,0.00019278,2]
[370363424,1751981442883,-151.0,0.00019278,2]
[370363425,1751981442894,-151.0,0.00019278,2]
[370363426,1751981442903,-571.628404,0.00019278,2]
[370363427,1751981442913,-571.628404,0.00019278,2]
[370363428,1751981442923,-487.432598,0.00019278,2]
[370363429,1751981442933,-487.432598,0.00019278,2]
[370363430,1751981442942,-151.0,0.00019278,2]
[370363431,1751981442952,-798.67117612,0.00019279,2]
[370363432,1751981442962,-160.0,0.0001928,2]
[370363433,1751981442972,-160.0,0.0001928,2]
[370363434,1751981442984,-160.0,0.0001928,2]
[370363435,1751981442994,-848.40570879,0.0001928,2]
[370363436,1751981443003,-160.0,0.0001928,2]
[370363437,1751981443013,-837.89306043,0.0001928,2]
[370363438,1751981443022,-160.0,0.0001928,2]
[370363439,1751981443114,-160.0,0.0001928,2]
[370363440,1751981443130,-214.10276668,0.0001928,2]
[370363441,1751981443140,-12586.7184932,0.0001928,2]
[370363442,1751981443149,-215.2437778,0.0001928,2]
[370363443,1751981443159,-230.51100374,0.0001928,2]
[370363444,1751981443168,-160.0,0.0001928,2]
[370363445,1751981443178,-160.0,0.0001928,2]
[370363446,1751981443188,-160.0,0.0001928,2]
[370363447,1751981443197,-525.03036055,0.0001928,2]
[370363448,1751981443207,-151.0,0.00019287,2]
[370363449,1751981443216,-151.0,0.00019287,2]
[370363450,1751981443226,-151.0,0.00019287,2]
[370363451,1751981443236,-514.619335,0.00019287,2]
[370363452,1751981443245,-514.619335,0.00019287,2]
[370363453,1751981443255,-500.99652223,0.00019287,2]
[370363454,1751981443265,-152.63772674,0.00019287,2]
[370363455,1751981443275,-151.0,0.00019287,2]
[370363456,1751981443285,-500.0,0.00019287,2]
[370363457,1751981443297,-500.0,0.00019287,2]
[370363458,1751981443307,-262.16845149,0.00019287,2]
[370363459,1751981443316,-500.0,0.00019287,2]
[370363460,1751981443326,-208.83884851,0.00019287,2]
[370363461,1751981443335,-500.0,0.00019287,2]
[370363462,1751981443344,-500.0,0.00019287,2]
[370363463,1751981443354,-199.19384521,0.00019287,2]
[370363464,1751981443365,-500.0,0.00019287,2]
[370363465,1751981443376,-500.0,0.00019287,2]
[370363466,1751981443387,-557.86779352,0.00019287,2]
[370363467,1751981443396,-500.0,0.00019287,2]
[370363468,1751981443406,-500.0,0.00019287,2]
[370363469,1751981443416,-303.27049681,0.00019287,2]
[370363470,1751981443425,-351.96057309,0.00019287,2]
[370363471,1751981443435,-151.0,0.00019315,2]
[370363472,1751981443444,-500.0,0.00019315,2]
[370363473,1751981443454,-500.0,0.00019315,2]
[370363474,1751981443464,-500.0,0.00019315,2]
[370363475,1751981443474,-500.0,0.00019315,2]
[370363476,1751981443484,-500.0,0.00019315,2]
[370363477,1751981443493,-307.15077118,0.00019315,2]
[370363478,1751981443503,-500.0,0.00019315,2]
[370363479,1751981443513,-500.0,0.00019315,2]
[370363480,1751981443523,-270.37616793,0.00019315,2]
[370363481,1751981443532,-151.0,0.00019315,2]
[370363482,1751981443541,-151.0,0.00019315,2]
[370363484,1751981443551,-652.914468,0.00019315,2]
[370363485,1751981443560,-652.914468,0.00019315,2]
[370363486,1751981443571,-409.147028,0.00019315,2]
[370363487,1751981443581,-409.147028,0.00019315,2]
[370363488,1751981443591,-151.0,0.00019315,2]
[370363489,1751981443602,-151.0,0.00019329,2]
[370363490,1751981443611,-151.0,0.00019329,2]
[370363491,1751981443621,-151.0,0.00019329,2]
[370363492,1751981443631,-151.0,0.00019329,2]
[370363493,1751981443642,-151.0,0.00019329,2]
[370363494,1751981443651,-151.0,0.00019329,2]
[370363495,1751981443660,-151.0,0.00019329,2]
[370363496,1751981443669,-151.0,0.00019329,2]
[370363497,1751981443679,-151.0,0.00019329,2]
[370363498,1751981443688,-151.0,0.00019329,2]
[370363499,1751981443698,-151.0,0.00019329,2]
[370363500,1751981443708,-324.718956,0.00019329,2]
[370363501,1751981443717,-324.718956,0.00019329,2]
[370363502,1751981443727,-155.751367,0.00019329,2]
[370363503,1751981443736,-151.0,0.00019329,2]
[370363504,1751981443747,-151.0,0.00019329,2]
[370363505,1751981443756,-299.797589,0.00019329,2]
[370363506,1751981443767,-299.797589,0.00019329,2]
[370363507,1751981443777,-151.0,0.00019329,2]
[370363508,1751981443787,-151.0,0.00019329,2]
[370363509,1751981443797,-151.0,0.00019329,2]
[370363510,1751981443807,-571.628404,0.00019329,2]
[370363511,1751981443816,-571.628404,0.00019329,2]
[370363512,1751981443826,-151.0,0.00019329,2]
[370363513,1751981443835,-176.097372,0.00019329,2]
[370363514,1751981443844,-487.432598,0.00019329,2]
[370363515,1751981443854,-487.432598,0.00019329,2]
[370363516,1751981443863,-151.0,0.00019329,2]
[370363517,1751981443873,-151.0,0.00019329,2]
[370363518,1751981443882,-151.0,0.00019329,2]
[370363519,1751981443891,-277.631484,0.00019329,2]
[370363520,1751981443901,-151.0,0.00019329,2]
[370363521,1751981443910,-161.75836,0.00019329,2]
[370363522,1751981443920,-652.914468,0.00019329,2]
[370363523,1751981443929,-652.914468,0.00019329,2]
[370363524,1751981443938,-409.147028,0.00019329,2]
[370363525,1751981443947,-409.147028,0.00019329,2]
[370363526,1751981443956,-514.619335,0.00019329,2]
[370363528,1751981443966,-514.619335,0.00019329,2]
[370363529,1751981443975,-151.0,0.00019329,2]
[370363530,1751981443984,-100000.0,0.00019329,2]
[370363531,1751981443994,-828.22200964,0.00019334,2]
[370363532,1751981444003,-151.52253338,0.00019342,2]
[370363533,1751981444014,-500.0,0.00019342,2]
[370363534,1751981444024,-152.87107276,0.00019342,2]
[370363535,1751981444033,-263.11243433,0.00019342,2]
[370363536,1751981444043,-500.0,0.00019342,2]
[370363537,1751981444053,-500.0,0.00019342,2]
[370363539,1751981444062,-602.0,0.00019342,2]
[370363541,1751981444072,-500.0,0.00019342,2]
[370363542,1751981444081,-932.21149351,0.00019345,2]
[370363543,1751981444091,-500.0,0.00019369,2]
[370363544,1751981444100,-500.0,0.00019369,2]
[370363545,1751981444109,-500.0,0.00019369,2]
[370363546,1751981444119,-500.0,0.00019369,2]
[370363547,1751981444128,-302.66710251,0.0001938,2]
[370363548,1751981444137,-5461.15789496,0.00019383,2]
[370363549,1751981444146,-858.86622399,0.00019389,2]
[370363550,1751981444156,-500.0,0.00019397,2]
[370363551,1751981444165,-500.0,0.00019397,2]
[370363552,1751981444175,-500.0,0.00019397,2]
[370363553,1751981444185,-500.0,0.00019397,2]
[370363554,1751981444194,-151.0,0.000194,2]
[370363555,1751981444205,-151.0,0.000194,2]
[370363556,1751981444214,-500.0,0.00019424,2]
[370363557,1751981444224,-553.69842813,0.00019424,2]
[370363558,1751981444233,-500.0,0.00019424,2]
[370363559,1751981444243,-500.0,0.00019424,2]
[370363560,1751981444252,-500.0,0.0001944,2]
[370363561,1751981444262,-890.64427428,0.00019444,2]
[370363562,1751981444272,-500.0,0.00019451,2]
[370363563,1751981444281,-500.0,0.00019451,2]
[370363564,1751981444292,-164.84,0.00019451,2]
[370363565,1751981444301,-500.0,0.00019452,2]
[370363566,1751981444311,-500.0,0.00019452,2]
[370363567,1751981444321,-500.0,0.00019452,2]
[370363568,1751981444330,-868.633632,0.00019452,2]
[370363569,1751981444340,-868.633632,0.00019452,2]
[370363570,1751981444349,-868.633632,0.00019452,2]
[370363571,1751981444359,-868.633632,0.00019452,2]
[370363572,1751981444368,-868.633632,0.00019452,2]
[370363573,1751981444378,-868.633632,0.00019452,2]
[370363574,1751981444387,-598.91518142,0.00019452,2]
[370363575,1751981444397,-151.0,0.00019452,2]
[370363576,1751981444407,-151.000002,0.00019452,2]
[370363577,1751981444416,-460.0,0.00019452,2]
[370363578,1751981444425,-529.8,0.00019452,2]
[370363579,1751981444435,-151.0,0.00019452,2]
[370363580,1751981444530,-151.0,0.00019452,2]
[370363581,1751981444540,-151.0,0.00019452,2]
[370363582,1751981444549,-460.0,0.00019452,2]
[370363583,1751981444559,-460.0,0.00019452,2]
[370363584,1751981444568,-1899.487171,0.00019452,2]
[370363585,1751981444577,-1899.487171,0.00019452,2]
[370363586,1751981444586,-1899.487171,0.00019452,2]
[370363587,1751981444596,-1899.487171,0.00019452,2]
[370363588,1751981444605,-1899.487171,0.00019452,2]
[370363589,1751981444615,-1899.487171,0.00019452,2]
[370363590,1751981444624,-201.439692,0.00019452,2]
[370363591,1751981444636,-460.0,0.00019452,2]
[370363592,1751981444645,-151.0,0.00019452,2]